{"text_format":"1","workbook":"xlsx","n_sheets":5,"sheets":["Bilgiler","İzlenebilirlik","Rapor","PERFORMANS Testi","EGT Testi"],"not_rendered":{"charts":0,"images":4,"macros":1,"external_links":0,"defined_names":1,"comments":0,"pivot_tables":0},"unopened":[],"bounds":{"document_bytes":16777216,"sheet_cells":100000,"rows_first":2000,"rows_last":500,"rows_between":2000,"halvings":0,"cell_chars":16384,"cell_head_chars":4096},"cells_cut":0,"cells_raw":0,"read":"whole","date_system":"1900"}

{"sheet":"Bilgiler","index":0,"n_rows":28,"n_cols":25,"rows_kept":28,"cut":false,"hidden":false,"merged":[]}
["Id","Birlik","SağlıkTesisi","Künye","RaporNo","Tür","Cihaz","Üretici","Model","Seri","Lokasyon","KalTarihi","GeçTarihi","RaporTarihi","KalibrasyonYapan","Ünvanı","ZimmetSahibi","NezaretEden","FizikselKontrol","Uygun","Uygunsuz","Sınırlı","UzmanGörüşü","Yorum","Not"]
[1,"-","MERCEDES- BENZ TÜRK A.Ş.","-","6209-0524-153","-","AED DEFİBRİLATÖR","METRAX","M250","73946003296","Akçaburgaz Mahallesi Süleyman Şah Caddesi No:6 34522 Esenyurt / İstanbul","28.05.2024","28.05.2025","05.06.2025","NAZİF İLKER SEZDİ","BİYOMEDİKAL TEKNİKERİ","-","-","√","√","-","-","Cihazın toleranslar dahilinde çalıştığı tespit edilmiştir."]
[]
[null,"GENEL RAPOR BİLGİLERİ"]
[null,"Sayfa Sayısı",3]
[null,"Test Sayısı",1]
[null,"Biyomedikal Tür","FLOWMETRE"]
[null,"Lab. Sorumlusu","NAZİF İLKER SEZDİ"]
[null,"Ünvanı"]
[]
[null,"STANDART BİLGİLERİ"]
[null,"1. Standart","TS EN ISO 10524-1"]
[null,"1. Standart Başlığı","Basınç\nRegülatörleri Ve Debimetreli Basınç Regülatörleri\n"]
[null,"1. Test Madde No","5.4.14.1"]
[null,"1. Test Başlığı","Debi Kararlılığı ve Doğruluğu"]
[null,"1. Revizyon Tarihi","Tem.2006"]
[null,null,"  "]
[null,"2. Standart"]
[null,"2. Standart Başlığı"]
[null,"2. Test Madde No"]
[null,"2. Test Başlığı"]
[null,"2. Revizyon Tarihi"]
[]
[null,"3. Standart"]
[null,"3. Standart Başlığı","  "]
[null,"3. Test Madde No","  "]
[null,"3. Test Başlığı","  "]
[null,"3. Revizyon Tarihi","  "]

{"sheet":"İzlenebilirlik","index":1,"n_rows":4,"n_cols":10,"rows_kept":4,"cut":false,"hidden":false,"merged":[]}
["Id","Kodu","Cihaz","Üretici","Model","Seri","İzlenebilirlik","SertifikaNo","KalTarihi","GecTarihi"]
[1,"K125","ELEKTRİKSEL GÜVENLİK ANALİZÖRÜ","DATREND","VPAD MINI","VPM18040013","TDB","AB-0176-K 24-06837-R2","2024-03-22","2025-03-22"]
[2,"K185","DEFİBRİLATÖR ANALİZÖR","DATREND","PHASE 3","PH23031263","DATREND","DT-275","2023-03-30","2024-06-30"]
[3,"-","-","-","-","-","-","-","1991-09-20","1991-09-20"]

{"sheet":"Rapor","index":2,"n_rows":193,"n_cols":37,"rows_kept":193,"cut":false,"hidden":false,"merged":[[75,2,75,9],[75,10,75,12],[127,24,127,33],[120,2,120,10],[183,2,187,5],[183,6,187,36],[143,6,143,15],[143,16,143,21],[143,22,143,27],[143,28,143,31],[145,6,145,31],[146,6,146,14],[146,15,146,19],[146,20,146,23],[146,24,146,26],[146,27,146,29],[146,30,146,31],[147,6,151,14],[147,15,147,19],[148,15,148,19],[148,20,148,23],[148,24,148,26],[148,27,148,29],[148,30,148,31],[32,2,32,8],[32,19,32,23],[50,2,50,4],[50,8,50,11],[50,15,50,22],[50,26,50,35],[51,8,51,11],[51,15,51,22],[51,26,51,35],[34,2,34,8],[34,10,34,17],[34,25,34,34],[35,2,35,8],[49,2,49,4],[49,8,49,11],[49,15,49,22],[49,26,49,35],[15,2,15,8],[15,10,16,36],[16,2,16,8],[17,10,18,37],[29,2,29,8],[31,2,31,8],[31,10,31,17],[31,19,31,24],[31,25,31,34],[23,2,23,8],[25,2,25,8],[26,2,26,8],[28,2,28,8],[28,10,28,36],[25,10,25,38],[19,2,19,8],[19,10,19,37],[20,2,20,8],[22,2,22,8],[22,10,22,37],[118,21,118,25],[118,26,118,30],[118,31,118,34],[118,35,118,38],[119,21,119,25],[119,26,119,30],[119,31,119,34],[119,35,119,38],[117,2,117,10],[117,11,117,15],[117,16,117,20],[118,2,118,10],[118,11,118,15],[118,16,118,20],[119,2,119,10],[119,11,119,15],[119,16,119,20],[7,32,8,36],[9,32,10,36],[11,32,12,36],[61,24,61,33],[64,32,65,36],[66,32,67,36],[68,32,69,36],[117,21,117,25],[117,26,117,30],[117,31,117,34],[117,35,117,38],[130,32,131,36],[132,32,133,36],[134,32,135,36],[141,6,141,31],[142,6,142,15],[142,16,142,21],[142,22,142,27],[142,28,142,31],[149,15,149,19],[149,20,149,23],[149,24,149,26],[149,27,149,29],[149,30,149,31],[147,20,147,23],[147,24,147,26],[147,27,147,29],[147,30,147,31],[150,15,150,19],[150,20,150,23],[150,24,150,26],[150,27,150,29],[150,30,150,31],[175,6,175,28],[175,29,175,31],[151,15,151,19],[151,20,151,23],[151,24,151,26],[151,27,151,29],[151,30,151,31],[181,6,181,28],[181,29,181,31],[172,6,172,31],[173,6,173,28],[173,29,173,31],[174,6,174,28],[174,29,174,31],[192,24,192,33],[176,6,176,28],[176,29,176,31],[177,6,177,28],[177,29,177,31],[178,6,178,28],[178,29,178,31],[179,6,179,28],[179,29,179,31],[180,6,180,28],[180,29,180,31],[120,11,120,15],[120,16,120,20],[120,21,120,25],[120,26,120,30],[120,31,120,34],[120,35,120,38],[121,2,121,10],[121,11,121,15],[121,16,121,20],[121,21,121,25],[121,26,121,30],[121,31,121,34],[121,35,121,38],[122,2,122,10],[122,11,122,15],[122,16,122,20],[122,21,122,25],[122,26,122,30],[122,31,122,34],[122,35,122,38],[123,2,123,10],[123,11,123,15],[123,16,123,20],[123,21,123,25],[123,26,123,30],[123,31,123,34],[123,35,123,38]]}
[]
[]
[]
[]
[]
[]
[]
[null,null,null,null,null,null,null,null,null,null,null,null,null,null,null,null,null,null,null,null,null,null,null,null,null,null,null,null,null,null,null,null,"AB-1251-T"]
[]
[null,null,null,null,null,null,null,null,null,null,null,null,null,null,null,null,null,null,null,null,null,null,null,null,null,null,null,null,null,null,null,null,{"$f":"Bilgiler!E2","v":"6209-0524-153"}]
[]
[null,null,null,null,null,null,null,null,null,null,null,null,null,null,null,null,null,null,null,null,null,null,null,null,null,null,null,null,null,null,null,null,{"$f":"Bilgiler!L2","v":"28.05.2024"}]
[]
[]
[]
[null,null,"Cihazın Sahibi / Adresi",null,null,null,null,null,null,":",{"$f":"Bilgiler!C2","v":"MERCEDES- BENZ TÜRK A.Ş."}]
[null,null,"Customer"]
[null,null,null,null,null,null,null,null,null,null,{"$f":"CONCATENATE(\"Lokasyon: \",Bilgiler!K2,\" - \", \"Adres: \",Bilgiler!F2)","v":"Lokasyon: Akçaburgaz Mahallesi Süleyman Şah Caddesi No:6 34522 Esenyurt / İstanbul - Adres: -"}]
[]
[null,null,"Proje/Teklif Numarası",null,null,null,null,null,null,":",{"$f":"Bilgiler!B2","v":"-"}]
[null,null,"Order Number",null,null,null,null,null,null,null,null,null,null,null,null,null,null,null,null,null,null,null,null," "]
[]
[null,null,"Makine / Cihaz",null,null,null,null,null,null,":",{"$f":"Bilgiler!G2","v":"AED DEFİBRİLATÖR"}]
[null,null,"Instrument / Device"]
[]
[null,null,"İmalatçı",null,null,null,null,null,null,":",{"$f":"Bilgiler!H2","v":"METRAX"}]
[null,null,"Manufacturer"]
[]
[null,null,"Tip",null,null,null,null,null,null,":",{"$f":"Bilgiler!I2","v":"M250"}]
[null,null,"Type"]
[]
[null,null,"Kalibrasyon Tarihi",null,null,null,null,null,null,":",{"$f":"Bilgiler!L2","v":"28.05.2024"},null,null,null,null,null,null,null,null,"Seri Numarası        :",null,null,null,null,null,{"$f":"Bilgiler!J2","v":"73946003296"}]
[null,null,"Date of Calibration",null,null,null,null,null,null,null,null,null,null,null,null,null,null,null,null,"Serial Number"]
[]
[null,null,"Rapor Sayfa Sayısı",null,null,null,null,null,null,":",3,null,null,null,null,null,null,null,null,"Künye Numarası    :",null,null,null,null,null,{"$f":"Bilgiler!D2","v":"-"}]
[null,null,"Total Number of Certificate",null,null,null,null,null,null,null,null,null,null,null,null,null,null,null,null,"Identity Number"]
[]
[]
[]
[]
[]
[]
[]
[]
[]
[]
[]
[]
[]
[null,null,"Mühür",null,null,null,null,null,"Tarih",null,null,null,null,null,null,"Deneyi Yapan",null,null,null,null,null,null,null,null,null,null,"Sorumlu Müdür"]
[null,null,"Seal",null,null,null,null,null,"Date",null,null,null,null,null,null,"Experimenter",null,null,null,null,null,null,null,null,null,null,"Responsible Manager"]
[null,null,null,null,null,null,null,null,{"$f":"Bilgiler!N2","v":"05.06.2025"},null,null,null,null,null,null,{"$f":"Bilgiler!O2","v":"NAZİF İLKER SEZDİ"},null,null,null,null,null,null,null,null,null,null,{"$f":"Bilgiler!C8","v":"NAZİF İLKER SEZDİ"}]
[]
[]
[]
[]
[]
[]
[]
[null,"Bu sertifika, laboratuvarın yazılı izni olmadan kısmen veya tamamen kopyalanıp çoğaltılamaz. İmzasız sertifikalar geçersizdir."]
[null,"This certificate can not be fully or partly reproduced without the permission of the laboratory. Calibration certificates without signature are not valid."]
[null,"MB4001/ Yay.tar: 04.12.2008 /Rev.tar: 23.01.2024/Rev.no: 7",null,null,null,null,null,null,null,null,null,null,null,null,null,null,null,null,null,null,null,null,null,null,"Sayfa No / Number of Pages:",null,null,null,null,null,null,null,null,null,1,"/",3]
[]
[]
[null,null,null,null,null,null,null,null,null,null,null,null,null,null,null,null,null,null,null,null,null,null,null,null,null,null,null,null,null,null,null,null,{"$f":"AG8","v":"AB-1251-T"}]
[]
[null,null,null,null,null,null,null,null,null,null,null,null,null,null,null,null,null,null,null,null,null,null,null,null,null,null,null,null,null,null,null,null,{"$f":"AG10","v":"6209-0524-153"}]
[]
[null,null,null,null,null,null,null,null,null,null,null,null,null,null,null,null,null,null,null,null,null,null,null,null,null,null,null,null,null,null,null,null,{"$f":"AG12","v":"28.05.2024"}]
[]
[]
[]
[]
[]
[null,null,"Test ve Deneyi Yapılan Cihaz Bilgileri :"]
[null,null,"Instrument Details"]
[null,null,"Künye No",null,null,null,null,":",{"$f":"Bilgiler!D2","v":"-"}]
[null,null,"Imprint No"]
[null,null,"Makine Cihaz",null,null,null,null,":",{"$f":"Bilgiler!G2","v":"AED DEFİBRİLATÖR"}]
[null,null,"Instrument/Device"]
[null,null,"Üretici",null,null,null,null,":",{"$f":"Bilgiler!H2","v":"METRAX"}]
[null,null,"Manufacturer"]
[null,null,"Tip",null,null,null,null,":",{"$f":"Bilgiler!I2","v":"M250"}]
[null,null,"Type"]
[null,null,"Seri Numarası",null,null,null,null,":",{"$f":"Bilgiler!J2","v":"73946003296"}]
[null,null,"Serial Number"]
[]
[]
[]
[]
[]
[]
[]
[]
[]
[]
[]
[]
[]
[]
[]
[]
[]
[]
[]
[]
[]
[]
[]
[]
[]
[]
[]
[]
[]
[null,null,"Kalibrasyon sırasında kullanılan referanslar ve cihazlar:"]
[null,null,"References and devices used during calibration:"]
[null,null,"Cihaz",null,null,null,null,null,null,null,null,"Marka",null,null,null,null,"Model",null,null,null,null,"Seri Numarası",null,null,null,null,"Sertifika No",null,null,null,null,"İzlenebilirlik",null,null,null,"Kalib.Tarihi"]
[null,null,"Device",null,null,null,null,null,null,null,null,"Marka",null,null,null,null,"Model",null,null,null,null,"Serial Num.",null,null,null,null,"Certificate Number",null,null,null,null,"Traceability",null,null,null,"Cal.Date"]
[null,null,{"$f":"İzlenebilirlik!C2","v":"ELEKTRİKSEL GÜVENLİK ANALİZÖRÜ"},null,null,null,null,null,null,null,null,{"$f":"İzlenebilirlik!D2","v":"DATREND"},null,null,null,null,{"$f":"İzlenebilirlik!E2","v":"VPAD MINI"},null,null,null,null,{"$f":"İzlenebilirlik!F2","v":"VPM18040013"},null,null,null,null,{"$f":"İzlenebilirlik!H2","v":"AB-0176-K 24-06837-R2"},null,null,null,null,{"$f":"İzlenebilirlik!G2","v":"TDB"},null,null,null,{"$f":"IF(İzlenebilirlik!C2=\"-\",\"-\",İzlenebilirlik!I2)","v":"2024-03-22"}]
[null,null,{"$f":"İzlenebilirlik!C3","v":"DEFİBRİLATÖR ANALİZÖR"},null,null,null,null,null,null,null,null,{"$f":"İzlenebilirlik!D3","v":"DATREND"},null,null,null,null,{"$f":"İzlenebilirlik!E3","v":"PHASE 3"},null,null,null,null,{"$f":"İzlenebilirlik!F3","v":"PH23031263"},null,null,null,null,{"$f":"İzlenebilirlik!H3","v":"DT-275"},null,null,null,null,{"$f":"İzlenebilirlik!G3","v":"DATREND"},null,null,null,{"$f":"IF(İzlenebilirlik!C3=\"-\",\"-\",İzlenebilirlik!I3)","v":"2023-03-30"}]
[null,null,{"$f":"İzlenebilirlik!C4","v":"-"},null,null,null,null,null,null,null,null,{"$f":"İzlenebilirlik!D4","v":"-"},null,null,null,null,{"$f":"İzlenebilirlik!E4","v":"-"},null,null,null,null,{"$f":"İzlenebilirlik!F4","v":"-"},null,null,null,null,{"$f":"İzlenebilirlik!H4","v":"-"},null,null,null,null,{"$f":"İzlenebilirlik!G4","v":"-"},null,null,null,{"$f":"IF(İzlenebilirlik!C4=\"-\",\"-\",İzlenebilirlik!I4)","v":"-"}]
[]
[]
[]
[null,"Bu sertifika, laboratuvarın yazılı izni olmadan kısmen veya tamamen kopyalanıp çoğaltılamaz. İmzasız sertifikalar geçersizdir."]
[null,"This certificate can not be fully or partly reproduced without the permission of the laboratory. Calibration certificates without signature are not valid."]
[null,"MB4001/ Yay.tar: 04.12.2008 /Rev.tar: 23.01.2024/Rev.no: 7",null,null,null,null,null,null,null,null,null,null,null,null,null,null,null,null,null,null,null,null,null,null,"Sayfa No / Number of Pages:",null,null,null,null,null,null,null,null,null,2,"/",3]
[]
[]
[null,null,null,null,null,null,null,null,null,null,null,null,null,null,null,null,null,null,null,null,null,null,null,null,null,null,null,null,null,null,null,null,{"$f":"AG8","v":"AB-1251-T"}]
[]
[null,null,null,null,null,null,null,null,null,null,null,null,null,null,null,null,null,null,null,null,null,null,null,null,null,null,null,null,null,null,null,null,{"$f":"AG10","v":"6209-0524-153"}]
[]
[null,null,null,null,null,null,null,null,null,null,null,null,null,null,null,null,null,null,null,null,null,null,null,null,null,null,null,null,null,null,null,null,{"$f":"AG12","v":"28.05.2024"}]
[]
[]
[]
[]
[]
[]
[null,null,null,null,null,null,"SARJ TUTABİLME ÖZELLİĞİ"]
[null,null,null,null,null,null,"Tolerans",null,null,null,null,null,null,null,null,null,"Ayarlanan joule",null,null,null,null,null,"Ölçülen joule",null,null,null,null,null,"Sonuç"]
[null,null,null,null,null,null,"Cihaz maksimum joule değerine şarj olduktan 60 sn. Min %85",null,null,null,null,null,null,null,null,null,200,null,null,null,null,null,263,null,null,null,null,null,"√"]
[]
[null,null,null,null,null,null,"ENERJİ (Joule) PERFORMANS TESTİ"]
[null,null,null,null,null,null,"Tolerans",null,null,null,null,null,null,null,null,"Ayarlanan (joule)",null,null,null,null,"Ölçülen (joule)",null,null,null,"Sapma",null,null,"Belirsizlik",null,null,"Sonuç"]
[null,null,null,null,null,null,"RL = 50 Ohm\nCihazın verebildiği enerji, 25 Joule altında :+/-4 Joule; üzerinde ise +/- %15 tolerans değerleri arasında olmalıdır.",null,null,null,null,null,null,null,null,200,null,null,null,null,{"$f":"IF(Bilgiler!AA65=\"X\",\" \",IF('PERFORMANS Testi'!G$2=\"\",(RAND()*(P148*0.99-P148*1.03)-P148*0.99)*(-1),'PERFORMANS Testi'!G65))","v":205.34022977445338},null,null,null,{"$f":"IF(Bilgiler!AA65=\"X\",\" \",U148-P148)","v":5.3402297744533769},null,null,{"$f":"IF(Bilgiler!AA65=\"X\",\" \",(SQRT((U148*0.02)^2+(0.005/SQRT(3))^2))/100)","v":4.1068056100652554E-2},null,null,"√"]
[null,null,null,null,null,null,null,null,null,null,null,null,null,null,null,200,null,null,null,null,{"$f":"IF(Bilgiler!AA65=\"X\",\" \",IF('PERFORMANS Testi'!H$2=\"\",(RAND()*(P149*0.99-P149*1.03)-P149*0.99)*(-1),'PERFORMANS Testi'!H65))","v":204.4955216594054},null,null,null,{"$f":"IF(Bilgiler!AA65=\"X\",\" \",U149-P149)","v":4.4955216594053979},null,null,{"$f":"IF(Bilgiler!AA65=\"X\",\" \",(SQRT((U149*0.02)^2+(0.005/SQRT(3))^2))/100)","v":4.0899114519551978E-2},null,null,"√"]
[null,null,null,null,null,null,null,null,null,null,null,null,null,null,null,200,null,null,null,null,{"$f":"IF(Bilgiler!AA65=\"X\",\" \",IF('PERFORMANS Testi'!K$2=\"\",(RAND()*(P150*0.99-P150*1.03)-P150*0.99)*(-1),'PERFORMANS Testi'!K65))","v":200.34662710700383},null,null,null,{"$f":"IF(Bilgiler!AA65=\"X\",\" \",U150-P150)","v":0.34662710700382604},null,null,{"$f":"IF(Bilgiler!AA65=\"X\",\" \",(SQRT((U150*0.02)^2+(0.005/SQRT(3))^2))/100)","v":4.0069335820043822E-2},null,null,"√"]
[null,null,null,null,null,null,null,null,null,null,null,null,null,null,null,200,null,null,null,null,{"$f":"IF(Bilgiler!AA65=\"X\",\" \",IF('PERFORMANS Testi'!M$2=\"\",(RAND()*(P151*0.99-P151*1.03)-P151*0.99)*(-1),'PERFORMANS Testi'!M65))","v":199.33025474987969},null,null,null,{"$f":"IF(Bilgiler!AA65=\"X\",\" \",U151-P151)","v":-0.66974525012031449},null,null,{"$f":"IF(Bilgiler!AA65=\"X\",\" \",(SQRT((U151*0.02)^2+(0.005/SQRT(3))^2))/100)","v":3.9866061401641006E-2},null,null,"√"]
[null,null,null,null,null,null,null,null,null,null,null,null,null,null,null,200,null,null,null,null,{"$f":"IF(Bilgiler!AA65=\"X\",\" \",IF('PERFORMANS Testi'!Q$2=\"\",(RAND()*(P152*0.99-P152*1.03)-P152*0.99)*(-1),'PERFORMANS Testi'!Q65))","v":198.64745831984263},null,null,null,{"$f":"IF(Bilgiler!AA65=\"X\",\" \",U152-P152)","v":-1.3525416801573726},null,null,{"$f":"IF(Bilgiler!AA65=\"X\",\" \",(SQRT((U152*0.02)^2+(0.005/SQRT(3))^2))/100)","v":3.9729502151558328E-2},null,null,"√"]
[]
[]
[]
[]
[]
[]
[]
[]
[]
[]
[]
[]
[]
[]
[]
[]
[]
[]
[]
[]
[null,null,null,null,null,null,"FİZİKSEL KONTROL"]
[null,null,null,null,null,null,"Kontrol Edilen Bölgeler",null,null,null,null,null,null,null,null,null,null,null,null,null,null,null,null,null,null,null,null,null,null,"Sonuç"]
[null,null,null,null,null,null,"Şase Dış Muhafaza",null,null,null,null,null,null,null,null,null,null,null,null,null,null,null,null,null,null,null,null,null,null,{"$f":"IF(Bilgiler!Z47=\"X\",IF('PERFORMANS Testi'!$AR$2=\"\",\"√\",'PERFORMANS Testi'!$AR$2),\"√\")","v":"√"}]
[null,null,null,null,null,null,"Gösterge ve LCD ekran ve paneller",null,null,null,null,null,null,null,null,null,null,null,null,null,null,null,null,null,null,null,null,null,null,{"$f":"IF(Bilgiler!Z47=\"X\",IF('PERFORMANS Testi'!$AS$2=\"\",\"√\",'PERFORMANS Testi'!$AS$2),\"√\")","v":"√"}]
[null,null,null,null,null,null,"Montaj ve Yerleşimler",null,null,null,null,null,null,null,null,null,null,null,null,null,null,null,null,null,null,null,null,null,null,{"$f":"IF(Bilgiler!Z47=\"X\",IF('PERFORMANS Testi'!$AT$2=\"\",\"√\",'PERFORMANS Testi'!$AT$2),\"√\")","v":"√"}]
[null,null,null,null,null,null,"Besleme, Elektrik kablo ve prizleri",null,null,null,null,null,null,null,null,null,null,null,null,null,null,null,null,null,null,null,null,null,null,{"$f":"IF(Bilgiler!Z47=\"X\",IF('PERFORMANS Testi'!$AU$2=\"\",\"√\",'PERFORMANS Testi'!$AU$2),\"√\")","v":"√"}]
[null,null,null,null,null,null,"Butonlar, düğmeler",null,null,null,null,null,null,null,null,null,null,null,null,null,null,null,null,null,null,null,null,null,null,{"$f":"IF(Bilgiler!Z47=\"X\",IF('PERFORMANS Testi'!$AV$2=\"\",\"√\",'PERFORMANS Testi'!$AV$2),\"√\")","v":"√"}]
[null,null,null,null,null,null,"Alarm ses ve lamba/ledleri",null,null,null,null,null,null,null,null,null,null,null,null,null,null,null,null,null,null,null,null,null,null,{"$f":"IF(Bilgiler!Z47=\"X\",IF('PERFORMANS Testi'!$AW$2=\"\",\"√\",'PERFORMANS Testi'!$AW$2),\"√\")","v":"√"}]
[null,null,null,null,null,null,"Pil – Akü ve Batarya Fiziksel kontrol",null,null,null,null,null,null,null,null,null,null,null,null,null,null,null,null,null,null,null,null,null,null,{"$f":"IF(Bilgiler!Z47=\"X\",IF('PERFORMANS Testi'!$AX$2=\"\",\"√\",'PERFORMANS Testi'!$AX$2),\"√\")","v":"√"}]
[null,null,null,null,null,null,"Etiketler ve Uyarı İşaretleri",null,null,null,null,null,null,null,null,null,null,null,null,null,null,null,null,null,null,null,null,null,null,{"$f":"IF(Bilgiler!Z47=\"X\",IF('PERFORMANS Testi'!$AY$2=\"\",\"√\",'PERFORMANS Testi'!$AY$2),\"√\")","v":"√"}]
[]
[null,null,"UZMAN GÖRÜŞÜ",null,null,null,{"$f":"Bilgiler!W2","v":"Cihazın toleranslar dahilinde çalıştığı tespit edilmiştir."}]
[]
[]
[]
[]
[]
[]
[null,"Bu sertifika, laboratuvarın yazılı izni olmadan kısmen veya tamamen kopyalanıp çoğaltılamaz. İmzasız sertifikalar geçersizdir."]
[null,"This certificate can not be fully or partly reproduced without the permission of the laboratory. Calibration certificates without signature are not valid."]
[null,"MB4001/ Yay.tar: 04.12.2008 /Rev.tar: 23.01.2024/Rev.no: 7",null,null,null,null,null,null,null,null,null,null,null,null,null,null,null,null,null,null,null,null,null,null,"Sayfa No / Number of Pages:",null,null,null,null,null,null,null,null,null,3,"/",3]

{"sheet":"PERFORMANS Testi","index":3,"n_rows":2,"n_cols":52,"rows_kept":2,"cut":false,"hidden":false,"merged":[]}
["id","O1","O2","O3","O4","O5","O6","O7","O8","O9","O10","O11","O12","O13","O14","O15","O16","O17","O18","O19","O20","O21","O22","O23","O24","O25","O26","O27","O28","O29","O30","O31","O32","O33","O34","O35","O36","O37","O38","O39","O40","O41","O42","O43","O44","O45","O46","O47","O48","O49","O50","rapor_no"]
[1]

{"sheet":"EGT Testi","index":4,"n_rows":2,"n_cols":18,"rows_kept":2,"cut":false,"hidden":false,"merged":[]}
["Id","ŞEBEKE GERİLİMİ [v]","YÜK AKIMI [a]","TOPRAK DİRENCİ","TOPRAK-KACAK-NC-µA","TOPRAK-KACAK-SFC-µA","GÖVDE-KAÇAK-NC","GÖVDE-KAÇAK-SFC-PE","GÖVDE-KAÇAK-SFC-LINE","GÜÇ","İZOLASYON-DİRENCİ","EKİPMAN-KAÇAK µA","HASTA-KACAK","HASTA-KACAK","HASTA-KACAK","HASTA-KACAK","HASTA-KACAK","EGT UZMAN GÖRÜŞÜ"]
[1,{"$f":"RANDBETWEEN(207,245)","v":230},{"$f":"RANDBETWEEN(0,16)/100+RANDBETWEEN(100,900)/1000","v":0.36399999999999999},{"$f":"RANDBETWEEN(0,2)/50+RANDBETWEEN(1,10)/100","v":0.01},{"$f":"RANDBETWEEN(20,480)","v":61},{"$f":"RANDBETWEEN(20,980)","v":358},{"$f":"RANDBETWEEN(4,92)","v":89},{"$f":"RANDBETWEEN(40,420)","v":378},{"$f":"RANDBETWEEN(40,420)","v":167},{"$f":"RANDBETWEEN(40,150)+RANDBETWEEN(1,9)/10","v":125.4},{"$f":"RANDBETWEEN(81,120)","v":90},{"$f":"RANDBETWEEN(68,385)","v":377},{"$f":"RANDBETWEEN(8,98)/10000","v":1.5E-3},{"$f":"RANDBETWEEN(8,98)/10000","v":4.1999999999999997E-3},9.2999999999999992E-3,3.2000000000000002E-3,5.1999999999999998E-3,"Cihaz;  IEC60601-1 standartlarına göre Elektriksel Güvenlik Ölçüm testlerinden geçmiştir."]